fUST/lending_fUST_20260509
["ID","MTS","AMOUNT","RATE_DAILY","PERIOD"]
[421890226,1778296245000,-337.19702213,0.00015613,2]
[421890223,1778296245000,-513.26394624,0.00015613,2]
[421890244,1778296245000,-505.36905365,0.00015614,2]
[421890228,1778296245000,-504.38078917,0.00015613,2]
[421890233,1778296245000,-500.0,0.00015613,2]
[421890232,1778296245000,-448.56016982,0.00015613,2]
[421890229,1778296245000,-507.93112114,0.00015613,2]
[421890230,1778296245000,-512.46000346,0.00015613,2]
[421890231,1778296245000,-198.2852295,0.00015613,2]
[421890235,1778296245000,-504.12402826,0.00015613,2]
[421890237,1778296245000,-509.04859066,0.00015613,2]
[421890238,1778296245000,-430.65646585,0.00015613,2]
[421890242,1778296245000,-504.11399274,0.00015614,2]
[421890248,1778296245000,-343.43568991,0.00015615,2]
[421890247,1778296245000,-506.90531781,0.00015615,2]
[421890240,1778296245000,-500.0,0.00015613,2]
[421890246,1778296245000,-548.31512757,0.00015615,2]
[421890239,1778296245000,-500.0,0.00015613,2]
[421890227,1778296245000,-513.84084742,0.00015613,2]
[421890275,1778296245000,-151.0,0.00015665,2]
[421890333,1778296245000,-151.5,0.00016143,7]
[421890281,1778296245000,-151.0,0.00015665,2]
[421890310,1778296245000,-550.26,0.00015886,2]
[421890324,1778296245000,-321.47024906,0.00015887,2]
[421890327,1778296245000,-500.0,0.00015887,2]
[421890325,1778296245000,-372.27839268,0.00015887,2]
[421890319,1778296245000,-500.0,0.00015887,2]
[421890331,1778296245000,-151.0,0.00016,2]
[421890329,1778296245000,-160.0,0.000159,4]
[421890328,1778296245000,-500.0,0.00015887,2]
[421890318,1778296245000,-500.0,0.00015887,2]
[421890322,1778296245000,-500.0,0.00015887,2]
[421890330,1778296245000,-160.0,0.000159,3]
[421890323,1778296245000,-498.03639489,0.00015887,2]
[421890317,1778296245000,-498.63347256,0.00015887,2]
[421890321,1778296245000,-500.0,0.00015887,2]
[421890307,1778296245000,-506.59804758,0.00015886,2]
[421890326,1778296245000,-500.0,0.00015887,2]
[421890334,1778296245000,-154.74588725,0.00016143,7]
[421890335,1778296245000,-151.5,0.00016143,7]
[421890283,1778296245000,-151.0,0.000157,2]
[421890339,1778296245000,-500.0,0.00016143,7]
[421890343,1778296245000,-500.0,0.00016143,7]
[421890344,1778296245000,-500.0,0.00016143,7]
[421890337,1778296245000,-500.0,0.00016143,7]
[421890338,1778296245000,-500.0,0.00016143,7]
[421890341,1778296245000,-500.0,0.00016143,7]
[421890342,1778296245000,-500.0,0.00016143,7]
[421890340,1778296245000,-500.0,0.00016143,7]
[421890346,1778296245000,-500.0,0.00016143,7]
[421890347,1778296245000,-500.0,0.00016143,7]
[421890345,1778296245000,-151.9768637,0.00016143,7]
[421890332,1778296245000,-151.5,0.00016143,7]
[421890311,1778296245000,-385.09686415,0.00015886,2]
[421890336,1778296245000,-280.69981808,0.00016143,7]
[421890309,1778296245000,-500.0,0.00015886,2]
[421890284,1778296245000,-557.5788265,0.0001572,2]
[421890316,1778296245000,-500.0,0.00015887,2]
[421890279,1778296245000,-151.0,0.00015665,2]
[421890282,1778296245000,-152.81003812,0.00015665,2]
[421890285,1778296245000,-578.20924308,0.00015775,2]
[421890277,1778296245000,-151.0,0.00015665,2]
[421890278,1778296245000,-151.0,0.00015665,2]
[421890289,1778296245000,-163.95915473,0.0001583,2]
[421890299,1778296245000,-500.0,0.00015885,2]
[421890300,1778296245000,-500.0,0.00015885,2]
[421890295,1778296245000,-500.0,0.00015885,2]
[421890301,1778296245000,-500.0,0.00015885,2]
[421890292,1778296245000,-500.0,0.00015885,2]
[421890290,1778296245000,-327.02752236,0.00015883,2]
[421890288,1778296245000,-160.0,0.000158,2]
[421890280,1778296245000,-151.0,0.00015665,2]
[421890291,1778296245000,-504.51198635,0.00015885,2]
[421890308,1778296245000,-450.19392163,0.00015886,2]
[421890293,1778296245000,-500.0,0.00015885,2]
[421890312,1778296245000,-208.11,0.00015886,2]
[421890314,1778296245000,-500.0,0.00015886,2]
[421890315,1778296245000,-500.0,0.00015886,2]
[421890306,1778296245000,-500.0,0.00015885,2]
[421890305,1778296245000,-500.0,0.00015885,2]
[421890313,1778296245000,-647.56,0.00015886,2]
[421890304,1778296245000,-213.39582643,0.00015885,2]
[421890302,1778296245000,-500.0,0.00015885,2]
[421890296,1778296245000,-500.0,0.00015885,2]
[421890294,1778296245000,-356.8422483,0.00015885,2]
[421890298,1778296245000,-500.0,0.00015885,2]
[421890297,1778296245000,-500.0,0.00015885,2]
[421890373,1778296246000,-325.95740526,0.00016435,2]
[421890381,1778296246000,-165.69608674,0.00016708,2]
[421890371,1778296246000,-500.0,0.00016434,2]
[421890376,1778296246000,-1000.0,0.000166,6]
[421890383,1778296246000,-632.875048,0.00016797,2]
[421890374,1778296246000,-309.96069597,0.00016445,2]
[421890382,1778296246000,-188.52,0.00016709,2]
[421890375,1778296246000,-151.0,0.000165,2]
[421890384,1778296246000,-632.875048,0.00016797,2]
[421890380,1778296246000,-647.56,0.00016708,2]
[421890377,1778296246000,-338.605,0.00016662,2]
[421890379,1778296246000,-500.0,0.00016708,2]
[421890393,1778296246000,-160.72747513,0.000168,7]
[421890386,1778296246000,-632.875048,0.00016797,2]
[421890394,1778296246000,-151.0,0.000168,2]
[421890387,1778296246000,-632.875048,0.00016799,2]
[421890372,1778296246000,-500.0,0.00016435,2]
[421890395,1778296246000,-151.0,0.000168,2]
[421890378,1778296246000,-151.0,0.000167,2]
[421890367,1778296246000,-327.02752236,0.00016341,2]
[421890354,1778296246000,-241.67600025,0.00016143,7]
[421890366,1778296246000,-151.0,0.000163,2]
[421890385,1778296246000,-632.875048,0.00016797,2]
[421890357,1778296246000,-647.56,0.0001616,2]
[421890358,1778296246000,-500.0,0.0001616,2]
[421890349,1778296246000,-500.0,0.00016143,7]
[421890353,1778296246000,-500.0,0.00016143,7]
[421890351,1778296246000,-500.0,0.00016143,7]
[421890348,1778296246000,-500.0,0.00016143,7]
[421890355,1778296246000,-412.72,0.00016159,2]
[421890365,1778296246000,-151.0,0.000162,2]
[421890350,1778296246000,-500.0,0.00016143,7]
[421890360,1778296246000,-155.08,0.00016161,2]
[421890370,1778296246000,-647.56,0.00016434,2]
[421890361,1778296246000,-500.0,0.00016161,2]
[421890362,1778296246000,-500.0,0.00016161,2]
[421890359,1778296246000,-539.31162357,0.0001616,2]
[421890363,1778296246000,-169.70526956,0.00016161,2]
[421890368,1778296246000,-500.0,0.00016342,5]
[421890369,1778296246000,-500.0,0.00016434,2]
[421890352,1778296246000,-581.89677374,0.00016143,7]
[421890389,1778296246000,-632.875048,0.00016799,2]
[421890356,1778296246000,-500.0,0.0001616,2]
[421890396,1778296246000,-327.02752236,0.000168,2]
[421890423,1778296246000,-500.0,0.00016973,2]
[421890420,1778296246000,-500.0,0.00016973,2]
[421890419,1778296246000,-500.0,0.00016973,2]
[421890421,1778296246000,-500.0,0.00016973,2]
[421890418,1778296246000,-500.0,0.00016973,2]
[421890417,1778296246000,-500.17572818,0.00016973,2]
[421890425,1778296246000,-500.0,0.00016982,2]
[421890424,1778296246000,-500.0,0.00016973,2]
[421890426,1778296246000,-647.56,0.00016982,2]
[421890428,1778296246000,-873.56972894,0.00016999,2]
[421890427,1778296246000,-414.84483382,0.00016999,2]
[421890429,1778296246000,-1025185.22999418,0.00017,2]
[421890431,1778296246000,-6332.39815017,0.00017,2]
[421890430,1778296246000,-25390.84025364,0.00017,2]
[421890432,1778296246000,-8819.8619366,0.00017,2]
[421890434,1778296246000,-453.0,0.00017,2]
[421890433,1778296246000,-575.9666368,0.00017,2]
[421890435,1778296246000,-3585.36740699,0.00017,2]
[421890388,1778296246000,-632.875048,0.00016799,2]
[421890413,1778296246000,-500.0,0.00016973,2]
[421890415,1778296246000,-500.0,0.00016973,2]
[421890364,1778296246000,-151.0000001,0.00016191,2]
[421890414,1778296246000,-500.0,0.00016973,2]
[421890412,1778296246000,-500.0,0.00016973,2]
[421890390,1778296246000,-632.875048,0.00016799,2]
[421890392,1778296246000,-160.0,0.000168,5]
[421890398,1778296246000,-16090.8077711,0.00016822,2]
[421890410,1778296246000,-720.0,0.00016903,2]
[421890409,1778296246000,-3734.85493809,0.000169,2]
[421890408,1778296246000,-151.0,0.000169,2]
[421890403,1778296246000,-160.0,0.000169,6]
[421890397,1778296246000,-1188.0815804,0.00016822,2]
[421890402,1778296246000,-160.0,0.000169,7]
[421890391,1778296246000,-1000.0,0.000168,7]
[421890399,1778296246000,-19009.1892241,0.00016822,2]
[421890406,1778296246000,-151.0,0.000169,2]
[421890407,1778296246000,-151.0,0.000169,2]
[421890400,1778296246000,-5273.0074659,0.00016822,2]
[421890401,1778296246000,-1446.2380256,0.00016822,2]
[421890405,1778296246000,-160.0,0.000169,4]
[421890411,1778296246000,-1249.99712677,0.00016936,9]
[421890416,1778296246000,-500.0,0.00016973,2]
[421890422,1778296246000,-500.0,0.00016973,2]
[421890404,1778296246000,-160.0,0.000169,5]
[421890437,1778296247000,-619.97317083,0.00015336,2]
[421890439,1778296247000,-501.08046459,0.00015065,2]
[421890438,1778296247000,-1565.43177892,0.00017,2]
[421890436,1778296247000,-500.0,0.00015062,2]
[421890440,1778296247000,-8839.99496564,0.00017,2]
[421890441,1778296247000,-9118.56381127,0.00017,2]
[421890444,1778296247000,-81675.72928229,0.00017,2]
[421890443,1778296247000,-483.90748233,0.00017,2]
[421890442,1778296247000,-2167.03052295,0.00017,2]
[421890484,1778297431000,-4329.06,0.00011782,2]
[421890485,1778297431000,-2790.32912721,0.00011901,2]
[421890483,1778297431000,-670.94,0.00011782,2]
[421890487,1778297431000,-365.67815039,0.00011901,2]
[421890488,1778297431000,-2282.82245048,0.00012021,2]
[421890489,1778297431000,-673.65800602,0.00012021,2]
[421890486,1778297431000,-1843.9927224,0.00011901,2]
[421890495,1778297432000,-420.0,0.00013593,2]
[421890492,1778297432000,-1200.0,0.00012141,2]
[421890491,1778297432000,-1542.5195435,0.00012021,2]
[421890490,1778297432000,-501.0,0.00012021,2]
[421890494,1778297432000,-203.71822686,0.00012577,2]
[421890493,1778297432000,-300.0,0.00012387,2]
[421890498,1778297432000,-1000.0,0.00013699,2]
[421890496,1778297432000,-156.0,0.00013699,2]
[421890499,1778297432000,-300.0,0.00013831,2]
[421890501,1778297432000,-642.14873717,0.00014367,2]
[421890503,1778297432000,-500.0,0.00014367,2]
[421890507,1778297432000,-247.56645485,0.00014367,2]
[421890505,1778297432000,-500.0,0.00014367,2]
[421890497,1778297432000,-1000.0,0.00013699,2]
[421890502,1778297432000,-500.0,0.00014367,2]
[421890500,1778297432000,-739.92245502,0.00014268,2]
[421890587,1778297438000,-500.0,0.00014368,2]
[421890566,1778297438000,-500.0,0.00014367,2]
[421890568,1778297438000,-500.0,0.00014368,2]
[421890561,1778297438000,-502.65,0.00014367,2]
[421890569,1778297438000,-500.0,0.00014368,2]
[421890573,1778297438000,-500.0,0.00014368,2]
[421890575,1778297438000,-500.0,0.00014368,2]
[421890564,1778297438000,-500.0,0.00014367,2]
[421890574,1778297438000,-620.58,0.00014368,2]
[421890583,1778297438000,-500.0,0.00014368,2]
[421890588,1778297438000,-500.0,0.00014368,2]
[421890572,1778297438000,-500.0,0.00014368,2]
[421890567,1778297438000,-500.0,0.00014367,2]
[421890565,1778297438000,-420.93350562,0.00014367,2]
[421890571,1778297438000,-597.99,0.00014368,2]
[421890559,1778297438000,-500.0,0.00014367,2]
[421890560,1778297438000,-500.0,0.00014367,2]
[421890558,1778297438000,-500.0,0.00014367,2]
[421890557,1778297438000,-185.32941447,0.00014367,2]
[421890556,1778297438000,-500.0,0.00014367,2]
[421890554,1778297438000,-500.0,0.00014367,2]
[421890555,1778297438000,-490.58091421,0.00014367,2]
[421890553,1778297438000,-500.0,0.00014367,2]
[421890552,1778297438000,-252.43354515,0.00014367,2]
[421890551,1778297438000,-5000.0,0.00014223,2]
[421890570,1778297438000,-500.0,0.00014368,2]
[421890586,1778297438000,-500.0,0.00014368,2]
[421890562,1778297438000,-500.0,0.00014367,2]
[421890577,1778297438000,-500.0,0.00014368,2]
[421890582,1778297438000,-622.55,0.00014368,2]
[421890609,1778297438000,-270.884,0.00014961,2]
[421890610,1778297438000,-201.4347134,0.00014961,2]
[421890608,1778297438000,-590.22,0.00014916,2]
[421890607,1778297438000,-620.58,0.00014916,2]
[421890605,1778297438000,-320.0,0.00014904,3]
[421890606,1778297438000,-500.0,0.00014916,2]
[421890603,1778297438000,-154.08219887,0.000148,2]
[421890604,1778297438000,-154.73967023,0.000148,2]
[421890602,1778297438000,-151.54936067,0.000148,2]
[421890596,1778297438000,-500.0,0.00014642,2]
[421890600,1778297438000,-429.99,0.00014642,2]
[421890598,1778297438000,-411.82,0.00014642,2]
[421890599,1778297438000,-231.53,0.00014642,2]
[421890563,1778297438000,-356.58,0.00014367,2]
[421890594,1778297438000,-160.0,0.00014615,2]
[421890581,1778297438000,-500.0,0.00014368,2]
[421890579,1778297438000,-505.18406296,0.00014368,2]
[421890585,1778297438000,-576.65406376,0.00014368,2]
[421890590,1778297438000,-500.0,0.00014368,2]
[421890593,1778297438000,-160.0,0.00014615,2]
[421890589,1778297438000,-500.0,0.00014368,2]
[421890591,1778297438000,-500.0,0.00014368,2]
[421890601,1778297438000,-500.0,0.00014642,2]
[421890597,1778297438000,-620.58,0.00014642,2]
[421890595,1778297438000,-161.5993154,0.00014615,2]
[421890592,1778297438000,-240.3875077,0.00014577,2]
[421890584,1778297438000,-500.0,0.00014368,2]
[421890634,1778297439000,-500.0,0.00014962,2]
[421890632,1778297439000,-500.0,0.00014962,2]
[421890627,1778297439000,-500.0,0.00014962,2]
[421890630,1778297439000,-500.0,0.00014962,2]
[421890629,1778297439000,-500.0,0.00014962,2]
[421890641,1778297439000,-500.0,0.00014962,2]
[421890635,1778297439000,-500.0,0.00014962,2]
[421890637,1778297439000,-500.0,0.00014962,2]
[421890639,1778297439000,-500.0,0.00014962,2]
[421890640,1778297439000,-500.0,0.00014962,2]
[421890628,1778297439000,-303.32,0.00014962,2]
[421890643,1778297439000,-680.31621234,0.00014962,2]
[421890636,1778297439000,-500.0,0.00014962,2]
[421890626,1778297439000,-500.0,0.00014962,2]
[421890623,1778297439000,-500.0,0.00014962,2]
[421890625,1778297439000,-621.25884186,0.00014962,2]
[421890611,1778297439000,-218.13350394,0.00014962,2]
[421890620,1778297439000,-500.0,0.00014962,2]
[421890613,1778297439000,-628.57,0.00014962,2]
[421890621,1778297439000,-500.0,0.00014962,2]
[421890615,1778297439000,-500.0,0.00014962,2]
[421890614,1778297439000,-500.0,0.00014962,2]
[421890618,1778297439000,-500.0,0.00014962,2]
[421890612,1778297439000,-500.0,0.00014962,2]
[421890617,1778297439000,-500.0,0.00014962,2]
[421890616,1778297439000,-500.0,0.00014962,2]
[421890619,1778297439000,-500.0,0.00014962,2]
[421890638,1778297439000,-500.0,0.00014962,2]
[421890622,1778297439000,-500.0,0.00014962,2]
[421890633,1778297439000,-624.35,0.00014962,2]
[421890624,1778297439000,-500.0,0.00014962,2]
[421890631,1778297439000,-1793.776,0.00014962,2]
[421890642,1778297439000,-285.07376428,0.00014962,2]
[421890648,1778297439000,-680.31621234,0.00014962,2]
[421890655,1778297439000,-680.31621234,0.00014962,2]
[421890685,1778297439000,-281479.36000667,0.00014963,2]
[421890686,1778297439000,-985.41048548,0.00014963,2]
[421890676,1778297439000,-680.31621234,0.00014962,2]
[421890674,1778297439000,-680.31621234,0.00014962,2]
[421890680,1778297439000,-680.31621234,0.00014962,2]
[421890672,1778297439000,-39.66771998,0.00014962,2]
[421890679,1778297439000,-680.31621234,0.00014962,2]
[421890682,1778297439000,-10638.08297216,0.00014963,2]
[421890681,1778297439000,-680.31621234,0.00014962,2]
[421890675,1778297439000,-680.31621234,0.00014962,2]
[421890678,1778297439000,-680.31621234,0.00014962,2]
[421890684,1778297439000,-488.87651408,0.00014963,2]
[421890645,1778297439000,-680.31621234,0.00014962,2]
[421890683,1778297439000,-2413.05868585,0.00014963,2]
[421890669,1778297439000,-640.64849236,0.00014962,2]
[421890673,1778297439000,-680.31621234,0.00014962,2]
[421890663,1778297439000,-680.31621234,0.00014962,2]
[421890649,1778297439000,-680.31621234,0.00014962,2]
[421890647,1778297439000,-680.31621234,0.00014962,2]
[421890644,1778297439000,-680.31621234,0.00014962,2]
[421890667,1778297439000,-680.31621234,0.00014962,2]
[421890654,1778297439000,-680.31621234,0.00014962,2]
[421890650,1778297439000,-680.31621234,0.00014962,2]
[421890651,1778297439000,-680.31621234,0.00014962,2]
[421890646,1778297439000,-680.31621234,0.00014962,2]
[421890656,1778297439000,-680.31621234,0.00014962,2]
[421890661,1778297439000,-680.31621234,0.00014962,2]
[421890666,1778297439000,-680.31621234,0.00014962,2]
[421890659,1778297439000,-680.31621234,0.00014962,2]
[421890665,1778297439000,-680.31621234,0.00014962,2]
[421890658,1778297439000,-680.31621234,0.00014962,2]
[421890653,1778297439000,-680.31621234,0.00014962,2]
[421890652,1778297439000,-680.31621234,0.00014962,2]
[421890730,1778297441000,-1043.44113708,0.00014963,2]
[421890729,1778297441000,-1128.17371129,0.00014963,2]
[421890748,1778297446000,-2594.48434591,0.00014963,2]
[421890749,1778297447000,-2770.35635467,0.00014963,2]
[421890754,1778297450000,-12633.43205016,0.00014963,2]
[421890755,1778297450000,-1588.66910052,0.00014963,2]
[421890756,1778297450000,-382.91828592,0.00014963,2]
[421890758,1778297450000,-2700.0000006,0.00014963,2]
[421890757,1778297450000,-407.64,0.00014963,2]
[421890764,1778297802000,323065.28578606,0.00019178,120]
[421890789,1778298082000,312882.0,0.00019,120]
[421890834,1778298637000,51042.92,0.00019178,120]
[421890856,1778298640000,-389.9284953,0.00012142,2]
[421890867,1778298643000,-4068.4215047,0.00012142,2]
[421890866,1778298643000,-541.65,0.00012142,2]
[421890869,1778298643000,-585.97660249,0.00012265,2]
[421890870,1778298643000,-1848.43544061,0.00012265,2]
[421890868,1778298643000,-2565.5879569,0.00012265,2]
[421890873,1778298643000,-1000.0,0.00013699,2]
[421890875,1778298643000,-224.0,0.00013781,3]
[421890871,1778298643000,-201.21085454,0.00012452,2]
[421890872,1778298643000,-300.0,0.00012513,2]
[421890876,1778298643000,-647.43214816,0.00014166,2]
[421890874,1778298643000,-1000.0,0.00013699,2]
[421890877,1778298643000,-2153.75088334,0.00014264,2]
[421890878,1778298643000,-424.17702131,0.00014264,2]
[421890879,1778298643000,-628.1247688,0.00014264,2]
[421890896,1778298644000,-500.0,0.00014266,2]
[421890907,1778298644000,-729.52199927,0.00014266,2]
[421890906,1778298644000,-729.52199927,0.00014266,2]
[421890895,1778298644000,-640.90728183,0.00014266,2]
[421890902,1778298644000,-729.52199927,0.00014266,2]
[421890897,1778298644000,-500.0,0.00014266,2]
[421890899,1778298644000,-576.83151597,0.00014266,2]
[421890892,1778298644000,-500.0,0.00014266,2]
[421890901,1778298644000,-729.52199927,0.00014266,2]
[421890898,1778298644000,-500.0,0.00014266,2]
[421890891,1778298644000,-500.0,0.00014266,2]
[421890889,1778298644000,-500.0,0.00014266,2]
[421890887,1778298644000,-500.0,0.00014266,2]
[421890886,1778298644000,-80.54831827,0.00014266,2]
[421890900,1778298644000,-332.35477999,0.00014266,2]
[421890884,1778298644000,-31.05834526,0.00014266,2]
[421890882,1778298644000,-12.32321319,0.00014266,2]
[421890885,1778298644000,-388.39333647,0.00014266,2]
[421890894,1778298644000,-500.0,0.00014266,2]
[421890893,1778298644000,-500.0,0.00014266,2]
[421890883,1778298644000,-500.0,0.00014266,2]
[421890881,1778298644000,-487.67678681,0.00014266,2]
[421890880,1778298644000,-155.31677084,0.00014264,2]
[421890890,1778298644000,-500.0,0.00014266,2]
[421890903,1778298644000,-729.52199927,0.00014266,2]
[421890888,1778298644000,-500.0,0.00014266,2]
[421890904,1778298644000,-729.52199927,0.00014266,2]
[421890905,1778298644000,-729.52199927,0.00014266,2]
[421890931,1778298644000,-9881.11499437,0.00014267,2]
[421890929,1778298644000,-753.83939926,0.00014266,2]
[421890928,1778298644000,-753.83939926,0.00014266,2]
[421890930,1778298644000,-50623.73159266,0.00014267,2]
[421890927,1778298644000,-753.83939926,0.00014266,2]
[421890925,1778298644000,-753.83939926,0.00014266,2]
[421890922,1778298644000,-753.83939926,0.00014266,2]
[421890924,1778298644000,-753.83939926,0.00014266,2]
[421890923,1778298644000,-753.83939926,0.00014266,2]
[421890915,1778298644000,-729.52199927,0.00014266,2]
[421890916,1778298644000,-729.52199927,0.00014266,2]
[421890926,1778298644000,-753.83939926,0.00014266,2]
[421890918,1778298644000,-729.52199927,0.00014266,2]
[421890917,1778298644000,-729.52199927,0.00014266,2]
[421890920,1778298644000,-729.52199927,0.00014266,2]
[421890921,1778298644000,-753.83939926,0.00014266,2]
[421890919,1778298644000,-729.52199927,0.00014266,2]
[421890913,1778298644000,-729.52199927,0.00014266,2]
[421890914,1778298644000,-729.52199927,0.00014266,2]
[421890911,1778298644000,-729.52199927,0.00014266,2]
[421890909,1778298644000,-729.52199927,0.00014266,2]
[421890912,1778298644000,-729.52199927,0.00014266,2]
[421890910,1778298644000,-729.52199927,0.00014266,2]
[421890908,1778298644000,-729.52199927,0.00014266,2]
[421890938,1778298646000,-1784.12197028,0.00014267,2]
[421890940,1778298646000,-45268.54686121,0.00014267,2]
[421890937,1778298646000,-500.0,0.00014266,2]
[421890942,1778298646000,-541.03249352,0.00014267,2]
[421890941,1778298646000,-12833.92034401,0.00014267,2]
[421890939,1778298646000,-9758.58130913,0.00014267,2]
[421890943,1778298647000,-636.54678336,0.00014267,2]
[421891012,1778299530000,2525.87931783,7.6e-05,2]
[421891044,1778299832000,-5000.0,9.055e-05,2]
[421891046,1778299832000,-3312.17497517,9.146e-05,2]
[421891067,1778299832000,-1270.46154225,9.146e-05,2]
[421891068,1778299832000,-111.69523458,9.146e-05,2]
[421891065,1778299832000,-305.668248,9.146e-05,2]
[421891070,1778299832000,-13.78005887,9.284e-05,2]
[421891071,1778299832000,-203.56113193,9.285e-05,2]
[421891080,1778299832000,-498.51639312,0.00012998,2]
[421891072,1778299832000,-304.0,9.425e-05,2]
[421891073,1778299832000,-183.1286164,0.00011024,2]
[421891076,1778299832000,-216.707,0.0001274,2]
[421891078,1778299832000,-500.0,0.00012998,2]
[421891074,1778299832000,-240.20213568,0.00011285,2]
[421891079,1778299832000,-500.0,0.00012998,2]
[421891077,1778299832000,-566.50312964,0.000129,2]
[421891075,1778299832000,-314.88840144,0.000121,5]
[421891069,1778299832000,-286.21994113,9.284e-05,2]
[421891105,1778299838000,-500.0,0.00012998,2]
[421891119,1778299838000,-515.77205349,0.00012999,2]
[421891121,1778299838000,-515.77205349,0.00012999,2]
[421891111,1778299838000,-515.77205349,0.00012999,2]
[421891106,1778299838000,-500.0,0.00012998,2]
[421891107,1778299838000,-500.0,0.00012998,2]
[421891108,1778299838000,-500.0,0.00012998,2]
[421891104,1778299838000,-1.48360688,0.00012998,2]
[421891109,1778299838000,-500.0,0.00012998,2]
[421891112,1778299838000,-515.77205349,0.00012999,2]
[421891122,1778299838000,-515.77205349,0.00012999,2]
[421891113,1778299838000,-515.77205349,0.00012999,2]
[421891114,1778299838000,-515.77205349,0.00012999,2]
[421891125,1778299838000,-135.85709993,0.00012999,2]
[421891124,1778299838000,-515.77205349,0.00012999,2]
[421891123,1778299838000,-515.77205349,0.00012999,2]
[421891110,1778299838000,-515.77205349,0.00012999,2]
[421891117,1778299838000,-515.77205349,0.00012999,2]
[421891116,1778299838000,-515.77205349,0.00012999,2]
[421891118,1778299838000,-515.77205349,0.00012999,2]
[421891115,1778299838000,-515.77205349,0.00012999,2]
[421891120,1778299838000,-515.77205349,0.00012999,2]
[421891490,1778299847000,-515.77205349,0.00012999,2]
[421891492,1778299847000,-444.44167404,0.00012999,2]
[421891491,1778299847000,-515.77205349,0.00012999,2]
[421891489,1778299847000,-515.77205349,0.00012999,2]
[421891488,1778299847000,-379.91495356,0.00012999,2]
[421891499,1778300637000,10000.0,0.00019178,120]
[421891615,1778301035000,-201.087198,9.388e-05,2]
[421891616,1778301035000,-500.0,0.0001,2]
[421891617,1778301035000,-62.68431849,0.0001036,2]
[421891614,1778301035000,-3111.58555953,9.341e-05,2]
[421891621,1778301035000,-258.38216947,0.00010714,2]
[421891619,1778301035000,-1138.36908855,0.00010714,2]
[421891622,1778301035000,-2322.98222302,0.00011277,2]
[421891620,1778301035000,-260.96869793,0.00010714,2]
[421891618,1778301035000,-188.36291432,0.0001036,2]
[421891738,1778301039000,-500.0,0.00012997,2]
[421891737,1778301039000,-500.0,0.00012997,2]
[421891736,1778301039000,-500.0,0.00012997,2]
[421891735,1778301039000,-500.0,0.00012997,2]
[421891732,1778301039000,-500.0,0.00012997,2]
[421891730,1778301039000,-500.0,0.00012997,2]
[421891731,1778301039000,-500.0,0.00012997,2]
[421891746,1778301039000,-500.0,0.00012997,2]
[421891725,1778301039000,-500.0,0.00012997,2]
[421891726,1778301039000,-500.0,0.00012997,2]
[421891728,1778301039000,-500.0,0.00012997,2]
[421891724,1778301039000,-500.0,0.00012997,2]
[421891727,1778301039000,-500.0,0.00012997,2]
[421891729,1778301039000,-500.0,0.00012997,2]
[421891722,1778301039000,-500.0,0.00012997,2]
[421891717,1778301039000,-500.0,0.00012997,2]
[421891723,1778301039000,-500.0,0.00012997,2]
[421891708,1778301039000,-532.25599982,0.00012997,2]
[421891706,1778301039000,-500.0,0.00012996,2]
[421891705,1778301039000,-500.0,0.00012996,2]
[421891710,1778301039000,-26.32748977,0.00012997,2]
[421891712,1778301039000,-500.0,0.00012997,2]
[421891713,1778301039000,-246.40322743,0.00012997,2]
[421891714,1778301039000,-577.98,0.00012997,2]
[421891734,1778301039000,-500.0,0.00012997,2]
[421891721,1778301039000,-500.0,0.00012997,2]
[421891740,1778301039000,-500.0,0.00012997,2]